Cogmind - Beta 17 @@@ ROGUE MODE // 2026.07.21 @ 12:17:49 Player: pinbox Result: Self-destructed Performance ------------- Evolutions (5) 2500 Regions Visited (8) 1600 Robots Destroyed (87) 435 Value Destroyed (3200) 3200 Prototype IDs (4) 80 Alien Tech Used (0) 0 Bonus (54) 54 TOTAL SCORE: 7869 Bonus ------- Follower Combat Kills 54 Cogmind --------- Core Integrity 505/1000 Matter 1/300 Energy 100/100 System Corruption 17% Temperature Cool (0) Movement Core (1350) Ox26 Location -5/Factory Parts ------- > --- POWER (1) -------- (None) > --- PROPULSION (6) --- (None) > --- UTILITY (7) ------ Huge Storage Unit Advanced Targeting Computer Core Analyzer > --- WEAPON (3) ------- (None) > --- INVENTORY (25) --- Light Nuclear Core Improved Heat Sink Large Storage Unit Improved Matter Compressor (0) Advanced Salvage Targeting Computer Target Analyzer Kinecellerator Weapon Cycler Weapon Cycler Improved Weapon Cycler Layered Medium Armor Plating Reactive Plating Flak Cannon Gauss Cannon Gauss Cannon Gauss Cannon Heavy Rocket Launcher Improved Plasma Cutter Peak State ------------ > --- POWER ------------ Light Fission Core > --- PROPULSION ------- Light Treads Improved Treads Medium Treads Medium Treads > --- UTILITY ---------- Improved Cooling System Huge Storage Unit Improved Matter Compressor Advanced Targeting Computer Core Analyzer Recoil Stabilizer Weapon Cycler > --- WEAPON ----------- Gauss Cannon Gauss Cannon Gauss Cannon > --- INVENTORY -------- Light Nuclear Core Improved Heat Sink Large Storage Unit Medium Matter Pod Target Analyzer Kinecellerator Weapon Cycler Weapon Cycler Layered Medium Armor Plating Layered Medium Armor Plating Reactive Plating Medium Reactive Plating High-powered Tractor Beam Flak Cannon Flak Cannon Flak Cannon Flak Cannon Gauss Cannon Gauss Cannon Gauss Cannon Gauss Cannon Gauss Cannon Heavy Rocket Launcher Improved Plasma Cutter [Rating: 62] Favorites ----------- Power Ion Engine Engine Ion Engine Power Core Light Fission Core Propulsion Light Treads Treads Light Treads Utility Weapon Cycler Device Weapon Cycler Storage Huge Storage Unit Processor Advanced Targeting Computer Protection Hardened Light Armor Plating Weapon Gauss Cannon Energy Gun Heavy Particle Gun Ballistic Gun Assault Rifle Ballistic Cannon Gauss Cannon Build | -11 -10 -10 -10 -9 -8 -7 -6 -5 ------- Run | Yrd Mat Min Exi Min Mat Fac Fac Fac Slots Evolved 10 | . . . . . 4 2 2 2 Power . | . . . . . . . . . Propulsion 4 | . . . . . 1 1 . 2 Utility 5 | . . . . . 2 1 2 . Weapon 1 | . . . . . 1 . . . Parts Attached 63 | 7 3 . 1 . 26 12 2 12 Power 6 | 1 . . . . 3 1 . 1 Engine 4 | 1 . . . . 2 1 . . Core 2 | . . . . . 1 . . 1 Reactor . | . . . . . . . . . Propulsion 11 | 2 . . . . 4 2 . 3 Treads 11 | 2 . . . . 4 2 . 3 Leg . | . . . . . . . . . Wheel . | . . . . . . . . . Hover . | . . . . . . . . . Flight . | . . . . . . . . . Utility 23 | 2 1 . 1 . 8 6 2 3 Device 9 | 1 . . . . 4 3 . 1 Storage 5 | 1 1 . 1 . . 1 . 1 Processor 2 | . . . . . . . 2 . Hackware . | . . . . . . . . . Protection 7 | . . . . . 4 2 . 1 Artifact . | . . . . . . . . . Weapon 23 | 2 2 . . . 11 3 . 5 Energy Gun 3 | . . . . . 3 . . . Energy Cannon . | . . . . . . . . . Ballistic Gun 5 | 2 . . . . 3 . . . Ballistic Cannon 15 | . 2 . . . 5 3 . 5 Launcher . | . . . . . . . . . Special Weapon . | . . . . . . . . . Impact Weapon . | . . . . . . . . . Slashing Weapon . | . . . . . . . . . Piercing Weapon . | . . . . . . . . . Special Melee Weapon . | . . . . . . . . . Unidentified Prototypes 4 | . . . . . 3 . . 1 Parts Lost 33 | . . . . . 8 2 . 23 Power 6 | . . . . . 3 1 . 2 Propulsion 10 | . . . . . 2 1 . 7 Utility 8 | . . . . . 2 . . 6 Weapon 9 | . . . . . 1 . . 8 Highest Loss Streak 6 | . . . . . 3 1 . 6 To Critical Strikes . | . . . . . . . . . Average Backups 15 | . 3 9 9 9 13 20 21 21 Power . | . 1 1 1 1 1 . 1 1 Propulsion . | . . . . . . 2 2 . Utility 6 | . . 1 1 1 4 10 9 11 Weapon 7 | . 2 7 7 7 7 7 9 8 Tool/Special . | . . . . . . . . . Unused Backups 24 | . 1 . . . 5 3 . 15 Power . | . . . . . . . . . Propulsion . | . . . . . . . . . Utility 10 | . 1 . . . . . . 9 Weapon 13 | . . . . . 5 3 . 5 Tool/Special 1 | . . . . . . . . 1 Average Slot Usage (%) 92 | . 99 100 100 100 86 99 98 74 Engine 7 | . 14 14 14 14 8 6 5 1 Treads 25 | . 27 28 28 28 22 29 26 18 Device 16 | . 14 14 14 14 11 22 20 12 Storage 8 | . 14 14 14 14 9 7 6 5 Processor 2 | . . . . . . . 12 11 Protection 4 | . . . . . 8 7 6 3 Energy Gun 1 | . . . . . 6 . . . Ballistic Gun 2 | . 18 . . . 4 . . . Ballistic Cannon 19 | . 9 28 28 28 15 22 20 14 Peak Build Rating 62 | 7 10 10 10 10 39 46 53 62 Average Rating 31 | 5 7 10 10 10 25 42 51 49 On Entrance 20 | . 7 10 10 10 10 39 46 53 Avg Prop Armor Cover (%) . | . . . . . . . . . Naked Turns . | . . . . . . . . . Heaviest Build 135 | 14 24 24 34 34 53 135 135 135 Greatest Support 139 | 40 40 40 40 40 60 88 88 139 Greatest Overweight (x) 28 | . . . . . 2 1 1 28 Average Overweight (x) . | . . . . . . . 1 1 Largest Inventory Capacity 25 | 8 10 10 15 15 15 25 25 25 Average Capacity 18 | 7 8 10 12 15 15 23 25 25 Most Carried 25 | 1 9 9 10 10 15 25 23 25 Average Carried 15 | . 3 9 9 9 13 20 21 21 Final Capacity 25 | 8 10 10 15 15 15 25 25 25 Final Carried 23 | 1 9 9 9 10 14 23 23 18 Class Distribution -------------------- 37% | Mutant 24% | Scavenger-Gunner 22% | Gunner 16% | Tank Dominant Class ---------------- Mutant | -10/Materials Mutant | -10/Mines Mutant | -10/Exiles Mutant | -9/Mines Tank | -8/Materials Scavenger-Gunner | -7/Factory Gunner | -6/Factory Gunner | -5/Factory Resources | -11 -10 -10 -10 -9 -8 -7 -6 -5 ----------- Run | Yrd Mat Min Exi Min Mat Fac Fac Fac Matter Collected 2879 | 219 223 79 . 196 560 1114 130 358 Remotely 8 | . . . . . . . . 8 Salvage Created 2416 | 64 280 47 . . 934 717 95 279 Parts 123 | 8 17 4 . 4 34 39 5 12 Haulers Intercepted 4 | . 1 . . . 2 1 . . Recyclers Shooed 8 | 1 3 . . . . 2 . 2 Parts Field Recycled . | . . . . . . . . . Retrieved Matter . | . . . . . . . . . Parts Self-Destructed . | . . . . . . . . . Prevented . | . . . . . . . . . Parts Restored . | . . . . . . . . . Kills | -11 -10 -10 -10 -9 -8 -7 -6 -5 ------- Run | Yrd Mat Min Exi Min Mat Fac Fac Fac Combat Hostiles Destroyed 66 | . 7 5 . . 19 22 3 10 Guns 17 | . 7 . . . 10 . . . Cannons 48 | . . 5 . . 9 22 3 9 AOE 1 | . . . . . . . . 1 Classes Destroyed 14 | 1 4 . . . 2 5 . 2 Worker 3 | . . . . . . 1 . 2 Builder 1 | . . . . . . . . 1 Tunneler 6 | 4 . . . 1 1 . . . Hauler 4 | . 1 . . . 2 1 . . Recycler 4 | . . . . . . 3 . 1 Operator 2 | . 2 . . . . . . . Watcher 1 | . . . . . . 1 . . Swarmer 15 | . 3 3 . . . 6 . 3 Grunt 28 | . 4 2 . . 14 8 . . Duelist 1 | . . . . . . 1 . . Sentry 7 | . . . . . 4 1 . 2 Hunter 8 | . . . . . 1 3 2 2 Programmer 6 | . . . . . . 3 1 2 Behemoth 1 | . . . . . . . . 1 Best Kill Streak 5 | 2 2 3 . 1 4 5 2 4 Combat Bots Only 4 | . 2 3 . . 4 4 2 4 Max Kills in Single Turn 2 | 1 1 1 . 1 2 1 1 2 Gunslinging 1 | . . . . . 1 . . . Exploded 1 | . . . . . . . . 1 Melee . | . . . . . . . . . Uniques/NPCs Destroyed . | . . . . . . . . . Combat | -11 -10 -10 -10 -9 -8 -7 -6 -5 -------- Run | Yrd Mat Min Exi Min Mat Fac Fac Fac Hostile Shots Fired 523 | . 26 32 . 12 151 77 22 203 Missed 128 | . 10 4 . 3 27 20 7 57 Hits 395 | . 16 28 . 9 124 57 15 146 Projectile 395 | . 16 28 . 9 124 57 15 146 AOE 2 | . . . . . . . . 2 Critical Strikes 10 | . . . . . 2 1 . 7 Part Disruptions 2 | . . . . . . . . 2 Damage Taken 6535 | . 184 263 . 83 1642 867 191 3305 Core 896 | . 34 26 . 6 248 87 . 495 Absorbed by Shields 108 | . . . . . 108 . . . Ignored by Resistances 308 | . . . . . 115 . 75 118 Regen/Repaired (Parts) 77 | . . . . . . . 77 . Core Remaining (%) 82 | 100 . . . 73 54 87 100 . Volleys Fired 235 | 13 29 13 . 3 67 59 6 45 Largest 3 | 2 2 2 . 2 3 3 3 3 Hottest 133 | 40 66 66 . 66 133 120 120 120 Shots Fired 551 | 26 58 26 . 6 185 141 18 91 Gun 204 | 26 56 . . . 122 . . . Cannon 347 | . 2 26 . 6 63 141 18 91 Launcher . | . . . . . . . . . Special . | . . . . . . . . . Kinetic 483 | 26 58 26 . 6 117 141 18 91 Thermal 68 | . . . . . 68 . . . Explosive . | . . . . . . . . . Electromagnetic . | . . . . . . . . . Robot Hit Streak 18 | 8 13 4 . 5 15 9 9 18 Robot Miss Streak 8 | 3 5 3 . 5 8 2 1 2 Penetration Max 1 | . . . . . . 1 . . Secondary Targets 4 | . . . . . 4 . . . Max Gunslinging Chain 1 | . . . . . 1 . . . Shots Hit Robots 355 | 15 35 14 . 1 118 92 12 68 Core Hits 152 | 6 17 6 . . 39 37 7 40 Critical Kills . | . . . . . . . . . Critical Parts Destroyed . | . . . . . . . . . Critical Strikes 44 | . . 1 . 1 8 14 6 14 Burn 5 | . . . . . 5 . . . Blast 39 | . . 1 . 1 3 14 6 14 Melee Attacks . | . . . . . . . . . Impact . | . . . . . . . . . Slashing . | . . . . . . . . . Piercing . | . . . . . . . . . Sneak Attacks . | . . . . . . . . . Combat Hostiles . | . . . . . . . . . Follow-up Attacks . | . . . . . . . . . Damage Inflicted 8351 | 159 426 296 . 40 2302 2541 295 2292 Guns 2116 | 159 401 . . . 1556 . . . Cannons 5881 | . 24 296 . 39 746 2526 295 1955 Explosions 295 | . . . . . . . . 295 Melee . | . . . . . . . . . Ramming 59 | . 1 . . 1 . 15 . 42 Kinetic 6986 | 159 425 296 . 39 1291 2526 295 1955 Thermal 1033 | . . . . . 1011 . . 22 Explosive 273 | . . . . . . . . 273 Electromagnetic . | . . . . . . . . . Impact . | . . . . . . . . . Slashing . | . . . . . . . . . Piercing . | . . . . . . . . . Highest Corruption 17 | . . . . . . . . 17 Average Corruption 3 | . . . . . . . . 3 Corruption Purged . | . . . . . . . . . Corruption Blocked . | . . . . . . . . . Effects 15 | . . . . . . . . 15 Message Errors 3 | . . . . . . . . 3 Matter Fused 7 | . . . . . . . . 7 Heat Flow Errors 2 | . . . . . . . . 2 Energy Discharges 1 | . . . . . . . . 1 Data Loss (minor) 1 | . . . . . . . . 1 Misfires 1 | . . . . . . . . 1 Overload Shots . | . . . . . . . . . Overflow Damage 190 | . . 4 . . . 45 . 141 Projectiles 75 | . . 4 . . . 45 . 26 Explosions 113 | . . . . . . . . 113 Melee 2 | . . . . . . . . 2 Knockbacks 65 | . . 1 . . 6 35 2 21 Impact 1 | . . . . . . . . 1 Kinetic 59 | . . 1 . . 6 31 2 19 Secondary 5 | . . . . . . 4 . 1 Self-Inflicted Damage 315 | . . . . . . . . 315 Shots 5 | . . . . . . . . 5 Rammed 12 | . 2 . . . . 1 . 9 Targets Rammed 14 | . 2 . . 1 . 1 . 10 Kicked . | . . . . . . . . . Crushed 2 | . . . . 1 . . . 1 Highest Temperature 492 | . 18 90 . 12 480 492 32 144 Average Temperature 122 | . 8 35 . 6 172 102 14 16 Received Heat Transfer 1081 | . 78 60 . 6 679 162 . 96 Effects 13 | . . . . . 9 4 . . Shutdowns 3 | . . . . . 2 1 . . Energy Bleed 4 | . . . . . 4 . . . Interference 3 | . . . . . 1 2 . . Matter Decay 1 | . . . . . 1 . . . Damage (minor) 2 | . . . . . 1 1 . . Siege Activations . | . . . . . . . . . Martial Activations . | . . . . . . . . . Shielding Activations . | . . . . . . . . . Robots Disrupted . | . . . . . . . . . Combat Hostiles . | . . . . . . . . . Robots Corrupted . | . . . . . . . . . Combat Hostiles . | . . . . . . . . . Parts Fried . | . . . . . . . . . Impact Corruptions 1 | . . . . . . . . 1 Robots Melted . | . . . . . . . . . Combat Hostiles . | . . . . . . . . . Parts Melted 3 | . . . . . 3 . . . Heat Transferred 2381 | . . . . . 2331 . . 50 Parts Sabotaged . | . . . . . . . . . Parts Stolen . | . . . . . . . . . Parts Stripped . | . . . . . . . . . Power Chain Reactions 1 | . . . . . . . . 1 Alert | -11 -10 -10 -10 -9 -8 -7 -6 -5 ------- Run | Yrd Mat Min Exi Min Mat Fac Fac Fac Maximum Alert Level 1 | . . . . . . 1 . 1 Low Security (%) 94 | 100 100 100 . 100 100 90 100 89 Level 1 5 | . . . . . . 9 . 10 Level 2 . | . . . . . . . . . Level 3 . | . . . . . . . . . Level 4 . | . . . . . . . . . Level 5 . | . . . . . . . . . High Security . | . . . . . . . . . Max Security . | . . . . . . . . . Peak Influence 284 | 5 110 63 . 82 166 284 135 241 Initial 135 | . . 1 . . 24 57 135 18 Average 60 | . 42 34 . 10 56 55 64 99 Influence Increases 2415 | 20 239 122 . 87 586 688 84 589 Destroy 0b10 Robot/C 1400 | . 140 100 . 60 400 440 60 200 Destroy 0b10 Robot/NC 110 | 20 15 . . 5 20 30 . 20 Destroy Leader 362 | . 32 20 . 10 96 114 20 70 Allied During Kill 20 | . . . . 11 9 . . . Successful Hack 22 | . 22 . . . . . . . Disable Machine 195 | . . . . . 45 45 . 105 Destroy Structure 216 | . . 2 . 1 16 29 4 164 Lose Combat Pursuer 90 | . 30 . . . . 30 . 30 Influence Decreases 2415 | 20 233 115 13 25 521 537 323 628 Entered New Map 290 | . . 5 13 . 38 70 143 21 Time Decay 1785 | 20 233 110 . 25 390 447 180 380 Lost Part 317 | . . . . . 70 20 . 227 Lost Ally 23 | . . . . . 23 . . . Squads Dispatched 17 | . 1 . . . 2 8 1 5 Investigation 1 | . . . . . . . 1 . Extermination 5 | . . . . . . 3 . 2 Reinforcement 6 | . 1 . . . 1 4 . . Assault . | . . . . . . . . . Garrison 5 | . . . . . 1 1 . 3 Intercept . | . . . . . . . . . Searches Triggered . | . . . . . . . . . Construction Impeded 1 | . . . . . . 1 . . Haulers Reinforced 2 | . . . . . . 2 . . Active Scanning Responses . | . . . . . . . . . Cargo Convoy Interrupts . | . . . . . . . . . Stealth | -11 -10 -10 -10 -9 -8 -7 -6 -5 --------- Run | Yrd Mat Min Exi Min Mat Fac Fac Fac Distress Signals 2 | . 1 . . . 1 . . . Communications Jammed . | . . . . . . . . . Distress Signals . | . . . . . . . . . Times Spotted 93 | . 15 5 . 3 27 26 3 14 Peak Tracking Total 6 | . 3 3 . 3 6 4 2 3 Tactical Retreats 5 | . 1 . . . . 2 . 2 Traps | -11 -10 -10 -10 -9 -8 -7 -6 -5 ------- Run | Yrd Mat Min Exi Min Mat Fac Fac Fac Traps Triggered 4 | . 1 . . . . . 1 2 Indirectly . | . . . . . . . . . Trap Hack Attempts . | . . . . . . . . . Triggered . | . . . . . . . . . Disarmed . | . . . . . . . . . Reprogrammed . | . . . . . . . . . Reused . | . . . . . . . . . Traps Extracted . | . . . . . . . . . Installed . | . . . . . . . . . Triggered . | . . . . . . . . . Machines | -11 -10 -10 -10 -9 -8 -7 -6 -5 ---------- Run | Yrd Mat Min Exi Min Mat Fac Fac Fac Machines Disabled 13 | . . . . . 3 3 . 7 Max in Single Turn 3 | . . . . . 1 1 . 3 Garrison Access 3 | . . . . . 1 1 1 . Machines Repaired . | . . . . . . . . . Machines Dismantled . | . . . . . . . . . Machines Sabotaged . | . . . . . . . . . Overloaded Fab Kills . | . . . . . . . . . Hacking | -11 -10 -10 -10 -9 -8 -7 -6 -5 --------- Run | Yrd Mat Min Exi Min Mat Fac Fac Fac Machines Accessed 29 | . 7 . 4 . 4 6 2 6 Terminals 14 | . 7 . . . 2 3 . 2 Fabricators 1 | . . . . . . 1 . . Repair Stations 1 | . . . . . . . 1 . Recycling Units 3 | . . . . . . 1 . 2 Scanalyzers 2 | . . . . . 1 . . 1 Garrison Access 4 | . . . . . 1 1 1 1 Total Hacks 112 | . 24 . 49 . 7 11 3 18 Successful 78 | . 15 . 49 . 2 1 3 8 Failed 32 | . 9 . . . 4 10 . 9 Catastrophic 6 | . . . . . 1 3 . 2 Database Lockouts 2 | . . . . . 1 . . 1 Manual 39 | . 24 . . . 3 7 . 5 Terminals 38 | . 24 . . . 3 7 . 4 Fabricators 1 | . . . . . . 1 . . Repair Stations 2 | . . . . . . . 2 . Recycling Units 6 | . . . . . . 1 . 5 Scanalyzers 9 | . . . . . 2 . . 7 Garrison Access 7 | . . . . . 2 2 1 2 Terminal Hacks 52 | . 3 . 49 . . . . . Record 49 | . . . 49 . . . . . Terminal Index 1 | . 1 . . . . . . . Zone Layout 2 | . 2 . . . . . . . Fabricator Hacks . | . . . . . . . . . Repair Station Hacks 2 | . . . . . . . 2 . Scan Component 1 | . . . . . . . 1 . Repair 1 | . . . . . . . 1 . Recycling Unit Hacks 2 | . . . . . . . . 2 Process 2 | . . . . . . . . 2 Scanalyzer 6 | . . . . . 1 . . 5 Insert Component 2 | . . . . . . . . 2 Analyze 2 | . . . . . . . . 2 Retrieve Study 2 | . . . . . 1 . . 1 Garrison Access Hacks 3 | . . . . . 1 1 1 . Seal Access 3 | . . . . . 1 1 1 . Unauthorized Hacks 13 | . 12 . . . . . . 1 Terminals 13 | . 12 . . . . . . 1 Botnet 7 | . 6 . . . . . . 1 Skim 6 | . 6 . . . . . . . Fabricators . | . . . . . . . . . Repair Stations . | . . . . . . . . . Recycling Units . | . . . . . . . . . Scanalyzers . | . . . . . . . . . Garrison Access . | . . . . . . . . . Data Cores Recovered 2 | . 2 . . . . . . . Used . | . . . . . . . . . Hacking Detections 21 | . 7 . . . 2 5 1 6 Full Trace Events . | . . . . . . . . . Feedback Events . | . . . . . . . . . Feedback Blocked . | . . . . . . . . . Robot Schematics Acquired . | . . . . . . . . . Robots Built . | . . . . . . . . . Authchips . | . . . . . . . . . Time . | . . . . . . . . . Total Robot Build Rating . | . . . . . . . . . Part Schematics Acquired 2 | . . . . . . . . 2 Parts Built . | . . . . . . . . . Authchips . | . . . . . . . . . Time . | . . . . . . . . . Total Part Build Rating . | . . . . . . . . . Part Studies Acquired 2 | . . . . . 1 . . 1 Parts Repaired 1 | . . . . . . . 1 . Time 44 | . . . . . . . 44 . Parts Recycled . | . . . . . . . . . Recycled Matter 41 | . . . . . . . . 41 Retrieved Matter . | . . . . . . . . . Retrieved Components . | . . . . . . . . . Parts Scanalyzed 2 | . . . . . . . . 2 Part Schematics Acquired 2 | . . . . . . . . 2 Parts Damaged . | . . . . . . . . . Bothacking | -11 -10 -10 -10 -9 -8 -7 -6 -5 ------------ Run | Yrd Mat Min Exi Min Mat Fac Fac Fac Used RIF Installer . | . . . . . . . . . Robots Hacked . | . . . . . . . . . Non-combat . | . . . . . . . . . Combat . | . . . . . . . . . Robot Hacks Applied . | . . . . . . . . . Relay Couplers Released . | . . . . . . . . . Fabnet Peak Effective % . | . . . . . . . . . Robots Rewired . | . . . . . . . . . Allies Hacked . | . . . . . . . . . Hacks Repelled . | . . . . . . . . . Allies | -11 -10 -10 -10 -9 -8 -7 -6 -5 -------- Run | Yrd Mat Min Exi Min Mat Fac Fac Fac Total Allies 3 | . . . . 3 . . . . Largest Group 3 | . . . . 3 3 . . . Highest-Rated Group 40 | . . . . 40 40 . . . Highest-Rated Ally 16 | . . . . 16 16 . . . Total Orders . | . . . . . . . . . Ally Attacks 37 | . . . . 8 29 . . . Total Damage 365 | . . . . 89 276 . . . Kills 5 | . . . . 3 2 . . . Allies Corrupted . | . . . . . . . . . Allies Melted . | . . . . . . . . . Intel | -11 -10 -10 -10 -9 -8 -7 -6 -5 ------- Run | Yrd Mat Min Exi Min Mat Fac Fac Fac Active Infowar (turns) 2326 | 17 617 239 726 241 486 . . . Seismic 2326 | 17 617 239 726 241 486 . . . Robot Analysis Total . | . . . . . . . . . Derelict Logs Recovered 1 | . . 1 . . . . . . Drone Launches . | . . . . . . . . . Drone Recoveries . | . . . . . . . . . Exploration | -11 -10 -10 -10 -9 -8 -7 -6 -5 ------------- Run | Yrd Mat Min Exi Min Mat Fac Fac Fac Turns Passed 6768 | 209 617 239 726 241 1071 1918 378 1369 Spaces Moved 2888 | 105 309 119 453 142 394 751 130 485 Core 6 | 5 . . . . . . . 1 Treads 2882 | 100 309 119 453 142 394 751 130 484 Legs . | . . . . . . . . . Wheels . | . . . . . . . . . Hover . | . . . . . . . . . Flight . | . . . . . . . . . Fastest Speed 50 | 50 160 160 160 160 160 162 240 160 Average Speed 198 | 154 160 160 160 160 193 224 240 241 Slowest Speed 1450 | 160 160 160 160 160 330 242 240 1450 Overloaded Moves . | . . . . . . . . . Propulsion Burnouts . | . . . . . . . . . Robots Hopped . | . . . . . . . . . Potential Cave-ins . | . . . . . . . . . Cave-ins Triggered . | . . . . . . . . . Exploration Rate (%) 37 | 6 63 30 90 51 50 25 6 18 Regions Visited 8 Branch Regions 3 Pre-discovered Areas 1 | . . . 1 . . . . . Known Exits Taken 1 | . 1 . . . . . . . Unknown Exits Taken 7 | 1 . 1 1 1 1 1 1 . Scrap Searched 3 | . . . . 3 . . . . Spaces Dug . | . . . . . . . . . Terrain Destroyed 162 | . . 2 . 1 13 23 4 119 Melee . | . . . . . . . . . Projectile 60 | . . 2 . 1 13 23 4 17 AOE 102 | . . . . . . . . 102 Terrain Rammed . | . . . . . . . . . Walls Destroyed . | . . . . . . . . . Machines Disabled . | . . . . . . . . . Actions | -11 -10 -10 -10 -9 -8 -7 -6 -5 --------- Run | Yrd Mat Min Exi Min Mat Fac Fac Fac Total 3462 | 125 379 142 454 149 564 896 186 567 Wait 143 | . 19 11 . 3 23 37 46 4 Move 2880 | 104 308 118 452 141 393 750 129 485 Hop . | . . . . . . . . . Pick Up 59 | 1 9 . . 1 22 19 2 5 Fast Attach 35 | 7 5 . . . 15 5 1 2 Attach 29 | . . . . . 12 4 2 11 Detach 15 | . 2 . . . 6 5 . 2 Swap 9 | . 1 . 1 . 4 3 . . Drop 41 | . 4 . 1 . 22 13 . 1 Fire 235 | 13 29 13 . 3 67 59 6 45 Melee . | . . . . . . . . . Ram 3 | . . . . . . . . 3 Kick . | . . . . . . . . . Crush 11 | . 2 . . 1 . 1 . 7 Escape Stasis 2 | . . . . . . . . 2 Rewire . | . . . . . . . . . Trap . | . . . . . . . . . Miscellaneous . | . . . . . . . . . Route ------- -11/Scrapyard -10/Materials (discovered 6 exits: *Mat x3 / *Min x2 / Sub) -10/Mines -10/Exiles -9/Mines -8/Materials -7/Factory (discovered 2 exits: *Fac / Sto) -6/Factory -5/Factory History --------- Turn | Location | Event 9 | -11/Scrapyard | Discovered new exit (range 16) 210 | -11/Scrapyard | Entered Materials 309 | -10/Materials | Build established: Mutant 692 | -10/Materials | Discovered new exit (range 16) 724 | -10/Materials | Identified exit to Subcaves 746 | -10/Materials | Learned Storage emergency access door positions 753 | -10/Materials | Discovered new exit (range 16) 756 | -10/Materials | Learned Storage trap positions 757 | -10/Materials | Learned Storage stockpile data 758 | -10/Materials | Learned Storage emergency access door positions 759 | -10/Materials | Learned Storage trap positions 768 | -10/Materials | Identified exit to Materials 768 | -10/Materials | Identified exit to Mines 827 | -10/Materials | Entered Mines 858 | -10/Mines | Learned Materials trap positions 1058 | -10/Mines | Deemed a non-threat by the Exiles lab entrance 1060 | -10/Mines | Discovered new exit (range 5) 1066 | -10/Mines | Entered Exiles 1105 | -10/Exiles | Met 8R-AWN 1129 | -10/Exiles | Met EX-HEX 1190 | -10/Exiles | Met EX-BIN 1385 | -10/Exiles | Met EX-DEC 1506 | -10/Exiles | Visited The Gauntlet 1708 | -10/Exiles | Learned location of Zion (-7) 1771 | -10/Exiles | Discovered new exit (range 15) 1792 | -10/Exiles | Entered Mines 1799 | -9/Mines | Met a Derelict bent on vengeance 1831 | -9/Mines | Assisted by bots powering up and referring to "LRC-V3" 2015 | -9/Mines | Discovered new exit (range 9) 2033 | -9/Mines | Entered Materials 2033 | -8/Materials | Accompanied by 3 allies 2033 | -8/Materials | Evolved 4 slots: Propulsion x1, Utility x2, Weapon x1 2034 | -8/Materials | Loaded intel: 9 trap records 2098 | -8/Materials | Central database locked down 2332 | -8/Materials | Build established: Tank 2591 | -8/Materials | Lost 3 parts (1p1n1u) 2903 | -8/Materials | Garrison activated, responded to threat 3043 | -8/Materials | Discovered new exit (range 16) 3104 | -8/Materials | Entered Factory 3104 | -7/Factory | Evolved 2 slots: Propulsion x1, Utility x1 3105 | -7/Factory | Identified exit to Storage 3544 | -7/Factory | Build established: Scavenger-Gunner 4145 | -7/Factory | Garrison activated, responded to threat 4791 | -7/Factory | Build established: Gunner 4942 | -7/Factory | Discovered new exit (range 10) 5022 | -7/Factory | Entered another Factory area 5022 | -6/Factory | Evolved 2 slots: Utility x2 5102 | -6/Factory | Repaired Imp. Deuterium Engine 5325 | -6/Factory | Discovered new exit (range 15) 5400 | -6/Factory | Entered another Factory area 5400 | -5/Factory | Evolved 2 slots: Propulsion x2 5548 | -5/Factory | Central database locked down 5686 | -5/Factory | Spotted B-75 Beast 5693 | -5/Factory | Destroyed B-75 Beast 5707 | -5/Factory | Build established: Scavenger-Gunner 5755 | -5/Factory | Garrison activated, responded to threat 5832 | -5/Factory | Lost 4 parts (1p3n) 6086 | -5/Factory | Build established: Gunner 6165 | -5/Factory | Lost 6 parts (2n2u2w) 6392 | -5/Factory | Lost 4 parts (1n1u2w) 6639 | -5/Factory | Build established: Mutant 6726 | -5/Factory | System corruption reached 10% 6769 | -5/Factory | Self-destructed Last Messages --------------- 06696_ P-70 Sage knocked back. 06698_ Med. Treads destroyed. 06701_ Slammed into P-70 Sage. 06709_ System corrupted: Component data lost. 06717_ Lyr. Medium Armor Plating destroyed. 06718_ Acquired 5 matter. 06719_ Acquired 3 matter. 06722_ Slammed into P-70 Sage. 06722_ Gauss Cannon+ broken. 06722_ Destabilizing: Short circuit. 06725_ System corrupted: Matter fused (-3). 06725_ Broken Gauss Cannon+ destroyed. 06734_ Hpw. Tractor Beam destroyed. 06738_ Slammed into P-70 Sage. 06747_ 8EIOG2%B#